fUSD/lending_fUSD_20240220
["ID","MTS","AMOUNT","RATE_DAILY","PERIOD"]
[314532853,1708405896473,-500.0,0.00038207,2]
[314532854,1708405896483,-3156.54,0.00038207,2]
[314532855,1708405896493,-857.52,0.00038207,2]
[314532856,1708405896503,-1107.07,0.00038207,2]
[314532857,1708405896513,-799.36,0.00038207,2]
[314532858,1708405896523,-833.39,0.00038207,2]
[314532859,1708405896532,-757.3,0.00038207,2]
[314532860,1708405896542,-3560.7,0.00038207,2]
[314532861,1708405896552,-1705.39,0.00038207,2]
[314532862,1708405896563,-789.45,0.00038207,2]
[314532863,1708405896573,-3144.99,0.00038207,2]
[314532864,1708405896583,-5007.03,0.00038207,2]
[314532865,1708405896594,-1314.19,0.00038207,2]
[314532866,1708405896604,-985.9,0.00038207,2]
[314532867,1708405896613,-1051.08,0.00038207,2]
[314532868,1708405896623,-1499.97,0.00038207,2]
[314532869,1708405896633,-7345.36,0.00038207,2]
[314532870,1708405896643,-1204.36,0.00038207,2]
[314532871,1708405896653,-500.0,0.00038207,2]
[314532872,1708405896663,-770.93,0.00038207,2]
[314532873,1708405896673,-2816.2,0.00038207,2]
[314532874,1708405896684,-856.91,0.00038207,2]
[314532875,1708405896694,-566.48,0.00038207,2]
[314532876,1708405896704,-529.69,0.00038207,2]
[314532877,1708405896714,-631.33,0.00038207,2]
[314532878,1708405896723,-934.23,0.00038207,2]
[314532879,1708405896734,-503.72,0.00038207,2]
[314532880,1708405896744,-763.13,0.00038207,2]
[314532881,1708405896753,-506.06,0.00038207,2]
[314532882,1708405896763,-500.0,0.00038207,2]
[314532883,1708405896773,-500.0,0.00038207,2]
[314532884,1708405896783,-802.39,0.00038207,2]
[314532885,1708405896793,-1007.84,0.00038207,2]
[314532886,1708405896803,-800.83,0.00038207,2]
[314532887,1708405896812,-500.0,0.00038208,2]
[314532888,1708405896822,-500.0,0.00038208,2]
[314532889,1708405896831,-500.0,0.00038208,2]
[314532890,1708405896840,-1224.75,0.00038208,2]
[314532891,1708405896849,-500.0,0.00038208,2]
[314532892,1708405896859,-546.6,0.00038208,2]
[314532893,1708405896869,-500.0,0.00038208,2]
[314532894,1708405896878,-500.0,0.00038208,2]
[314532895,1708405896887,-500.0,0.00038208,2]
[314532896,1708405896896,-500.0,0.00038208,2]
[314532897,1708405896905,-500.0,0.00038208,2]
[314532898,1708405896914,-533.2453316,0.00038208,2]
[314532899,1708405896923,-500.0,0.00038208,2]
[314532900,1708405896932,-500.0,0.00038208,2]
[314532901,1708405896942,-1502.26,0.00038208,2]
[314532902,1708405896951,-500.0,0.00038208,2]
[314532903,1708405896960,-500.0,0.00038208,2]
[314532904,1708405896971,-855.67,0.00038208,2]
[314532905,1708405896985,-229.04095588,0.00038208,2]
[314532906,1708405896995,-500.0,0.00038208,2]
[314532907,1708405897004,-500.0,0.00038208,2]
[314532908,1708405897014,-500.0,0.00038208,2]
[314532909,1708405897025,-500.0,0.00038208,2]
[314532910,1708405897035,-500.0,0.00038208,2]
[314532911,1708405897044,-500.0,0.00038208,2]
[314532912,1708405897055,-500.0,0.00038208,2]
[314532913,1708405897066,-175.14354406,0.00038208,2]
[314532914,1708405897075,-500.0,0.00038208,2]
[314532915,1708405897085,-500.0,0.00038208,2]
[314532916,1708405897095,-500.0,0.00038208,2]
[314532917,1708405897104,-500.0,0.00038208,2]
[314532918,1708405897113,-500.0,0.00038208,2]
[314532919,1708405897123,-500.0,0.00038208,2]
[314532920,1708405897134,-500.0,0.00038208,2]
[314532921,1708405897144,-243.25496945,0.00038208,2]
[314532922,1708405897154,-500.0,0.00038208,2]
[314532923,1708405897164,-500.0,0.00038208,2]
[314532924,1708405897173,-500.0,0.00038208,2]
[314532925,1708405897183,-500.0,0.00038208,2]
[314532926,1708405897192,-500.0,0.00038208,2]
[314532927,1708405897202,-517.91,0.00038208,2]
[314532928,1708405897211,-500.0,0.00038208,2]
[314532929,1708405897221,-500.0,0.00038208,2]
[314532930,1708405897231,-500.0,0.00038208,2]
[314532931,1708405897240,-500.0,0.00038208,2]
[314532932,1708405897250,-500.0,0.00038208,2]
[314532933,1708405897259,-500.0,0.00038208,2]
[314532934,1708405897269,-500.0,0.00038208,2]
[314532935,1708405897278,-500.0,0.00038208,2]
[314532936,1708405897287,-551.12710997,0.00038208,2]
[314532937,1708405897297,-503.07,0.00038208,2]
[314532938,1708405897307,-500.0,0.00038208,2]
[314532939,1708405897317,-500.0,0.00038208,2]
[314532940,1708405897326,-857.77,0.00038208,2]
[314532941,1708405897336,-511.5503298,0.00038208,2]
[314532942,1708405897345,-610.42,0.00038208,2]
[314532943,1708405897355,-500.0,0.00038208,2]
[314532944,1708405897365,-500.0,0.00038208,2]
[314532945,1708405897374,-500.0,0.00038208,2]
[314532946,1708405897384,-500.0,0.00038208,2]
[314532947,1708405897394,-500.0,0.00038208,2]
[314532948,1708405897403,-584.52,0.00038208,2]
[314532949,1708405897413,-622.47,0.00038208,2]
[314532950,1708405897423,-500.0,0.00038208,2]
[314532951,1708405897432,-500.0,0.00038208,2]
[314532952,1708405897442,-176.29,0.00038208,2]
[314532953,1708405897452,-500.0,0.00038208,2]
[314532954,1708405897461,-500.0,0.00038208,2]
[314532955,1708405897471,-500.0,0.00038208,2]
[314532956,1708405897480,-500.0,0.00038208,2]
[314532957,1708405897490,-500.0,0.00038208,2]
[314532958,1708405897500,-500.0,0.00038208,2]
[314532959,1708405897509,-500.0,0.00038208,2]
[314532960,1708405897518,-500.0,0.00038208,2]
[314532961,1708405897528,-500.0,0.00038208,2]
[314532962,1708405897537,-500.0,0.00038208,2]
[314532963,1708405897546,-653.77,0.00038208,2]
[314532964,1708405897556,-651.49,0.00038208,2]
[314532965,1708405897567,-500.0,0.00038208,2]
[314532966,1708405897577,-500.0,0.00038208,2]
[314532967,1708405897586,-568.04,0.00038208,2]
[314532968,1708405897597,-500.0,0.00038208,2]
[314532969,1708405897607,-500.0,0.00038208,2]
[314532970,1708405897618,-500.0,0.00038208,2]
[314532971,1708405897628,-500.0,0.00038208,2]
[314532972,1708405897639,-502.26,0.00038208,2]
[314532973,1708405897648,-500.0,0.00038208,2]
[314532974,1708405897659,-500.0,0.00038208,2]
[314532975,1708405897668,-500.0,0.00038208,2]
[314532976,1708405897680,-500.0,0.00038208,2]
[314532977,1708405897689,-592.29,0.00038208,2]
[314532978,1708405897699,-609.58,0.00038208,2]
[314532979,1708405897708,-500.0,0.00038208,2]
[314532980,1708405897718,-500.0,0.00038208,2]
[314532981,1708405897728,-500.0,0.00038208,2]
[314532982,1708405897737,-500.0,0.00038208,2]
[314532983,1708405897747,-500.0,0.00038208,2]
[314532984,1708405897756,-1156.3,0.00038208,2]
[314532985,1708405897766,-500.0,0.00038208,2]
[314532986,1708405897776,-500.0,0.00038208,2]
[314532987,1708405897786,-500.0,0.00038208,2]
[314532988,1708405897795,-500.0,0.00038208,2]
[314532989,1708405897805,-500.0,0.00038208,2]
[314532990,1708405897814,-1376.34,0.00038208,2]
[314532991,1708405897824,-1450.35,0.00038208,2]
[314532992,1708405897834,-710.23,0.00038208,2]
[314532993,1708405897844,-612.87,0.00038208,2]
[314532994,1708405897854,-500.0,0.00038208,2]
[314532995,1708405897864,-2122.43,0.00038208,2]
[314532996,1708405897874,-500.0,0.00038208,2]
[314532997,1708405897884,-500.0,0.00038208,2]
[314532998,1708405897893,-1666.11,0.00038208,2]
[314532999,1708405897903,-996.96,0.00038208,2]
[314533000,1708405897913,-500.0,0.00038208,2]
[314533001,1708405897924,-2200.91,0.00038208,2]
[314533002,1708405897933,-481.39706925,0.00038208,2]
[314533003,1708405897943,-3505.57,0.00038208,2]
[314533004,1708405897952,-1549.1,0.00038208,2]
[314533005,1708405897962,-209.36173579,0.00038208,2]
[314533006,1708405897973,-500.0,0.00038208,2]
[314533007,1708405897984,-1427.74,0.00038208,2]
[314533008,1708405897994,-500.0,0.00038208,2]
[314533009,1708405898004,-1106.24,0.00038208,2]
[314533010,1708405898013,-558.37,0.00038208,2]
[314533011,1708405898022,-500.0,0.00038208,2]
[314533012,1708405898031,-8266.61,0.00038208,2]
[314533013,1708405898042,-500.0,0.00038208,2]
[314533014,1708405898051,-500.0,0.00038208,2]
[314533015,1708405898062,-500.0,0.00038208,2]
[314533016,1708405898073,-500.0,0.00038208,2]
[314533017,1708405898083,-1222.07,0.00038208,2]
[314533018,1708405898093,-500.0,0.00038208,2]
[314533019,1708405898102,-1383.97,0.00038208,2]
[314533020,1708405898112,-1188.64,0.00038208,2]
[314533021,1708405898121,-500.0,0.00038208,2]
[314533022,1708405898131,-1841.65,0.00038208,2]
[314533023,1708405898141,-514.51,0.00038208,2]
[314533024,1708405898150,-151.33136347,0.00038208,2]
[314533025,1708405898160,-500.0,0.00038208,2]
[314533026,1708405898170,-549.64756864,0.00038208,2]
[314533027,1708405898180,-500.0,0.00038208,2]
[314533028,1708405898190,-500.0,0.00038208,2]
[314533029,1708405898200,-500.0,0.00038208,2]
[314533030,1708405898209,-2051.17,0.00038208,2]
[314533031,1708405898219,-500.0,0.00038208,2]
[314533032,1708405898230,-500.0,0.00038208,2]
[314533033,1708405898240,-1668.23,0.00038208,2]
[314533034,1708405898250,-500.0,0.00038208,2]
[314533035,1708405898259,-500.0,0.00038208,2]
[314533036,1708405898269,-1172.7,0.00038208,2]
[314533037,1708405898279,-598.86618927,0.00038208,2]
[314533038,1708405898289,-1083.34,0.00038208,2]
[314533039,1708405898298,-500.0,0.00038243,2]
[314533040,1708405898307,-500.0,0.00038243,2]
[314533041,1708405898317,-153.34,0.00038263,2]
[314533042,1708405898326,-158.17,0.00038294,2]
[314533043,1708405898336,-1020.38,0.00038308,2]
[314533044,1708405898345,-1222.32,0.00038308,2]
[314533045,1708405898355,-500.0,0.00038308,2]
[314533046,1708405898364,-1934.95,0.00038308,2]
[314533047,1708405898374,-795.84,0.00038308,2]
[314533048,1708405898383,-1767.15,0.00038308,2]
[314533049,1708405898421,-1015.81,0.00038308,2]
[314533050,1708405898431,-734.77,0.00038308,2]
[314533051,1708405898440,-1939.44,0.00038308,2]
[314533052,1708405898450,-1351.97,0.00038308,2]
[314533053,1708405898459,-1088.16,0.00038308,2]
[314533054,1708405898468,-1475.67,0.00038308,2]
[314533055,1708405898479,-1038.28,0.00038308,2]
[314533056,1708405898488,-1154.43,0.00038308,2]
[314533057,1708405898498,-1030.29,0.00038308,2]
[314533058,1708405898507,-2781.04,0.00038308,2]
[314533059,1708405898517,-524.0,0.00038308,2]
[314533060,1708405898526,-677.33,0.00038308,2]
[314533061,1708405898536,-4170.19,0.00038308,2]
[314533062,1708405898546,-500.0,0.00038308,2]
[314533063,1708405898556,-1974.77,0.00038308,2]
[314533064,1708405898566,-3026.21,0.00038308,2]
[314533065,1708405898576,-686.23,0.00038308,2]
[314533066,1708405898587,-764.58,0.00038308,2]
[314533067,1708405898596,-765.68,0.00038308,2]
[314533068,1708405898607,-1513.9,0.00038308,2]
[314533069,1708405898617,-1299.32,0.00038308,2]
[314533070,1708405898627,-940.65,0.00038308,2]
[314533071,1708405898636,-1988.81,0.00038308,2]
[314533072,1708405898645,-921.1,0.00038309,2]
[314533073,1708405898655,-1958.76,0.00038309,2]
[314533074,1708405898665,-1249.32,0.00038309,2]
[314533075,1708405898675,-902.22,0.00038309,2]
[314533076,1708405898684,-664.99,0.00038309,2]
[314533077,1708405898693,-669.7,0.00038309,2]
[314533078,1708405898702,-3868.49,0.00038309,2]
[314533079,1708405898712,-1885.97,0.00038309,2]
[314533080,1708405898721,-658.2,0.00038309,2]
[314533081,1708405898730,-1639.72,0.00038309,2]
[314533082,1708405898739,-1006.78,0.00038309,2]
[314533083,1708405898749,-673.99,0.00038309,2]
[314533084,1708405898758,-500.0,0.00038309,2]
[314533085,1708405898768,-505.6,0.00038309,2]
[314533086,1708405898778,-1619.9,0.00038309,2]
[314533087,1708405898789,-927.69,0.00038309,2]
[314533088,1708405898799,-2967.23,0.00038309,2]
[314533089,1708405898810,-1060.89,0.00038309,2]
[314533090,1708405898819,-1666.19,0.00038309,2]
[314533091,1708405898829,-720.79,0.00038309,2]
[314533092,1708405898839,-1070.65,0.00038309,2]
[314533093,1708405898848,-500.84,0.00038309,2]
[314533094,1708405898857,-999.67,0.00038309,2]
[314533095,1708405898867,-850.24,0.00038309,2]
[314533096,1708405898877,-1626.55,0.00038309,2]
[314533097,1708405898887,-873.93,0.00038309,2]
[314533098,1708405898897,-500.0,0.00038309,2]
[314533099,1708405898907,-1425.91,0.00038309,2]
[314533100,1708405898916,-166.55,0.00038319,2]
[314533101,1708405898926,-739.6,0.0003832,2]
[314533102,1708405898935,-1420.14,0.00038337,2]
[314533103,1708405898945,-156.0,0.00038341,7]
[314533104,1708405898955,-2558.41,0.00038352,2]
[314533105,1708405898964,-1490.191048,0.00038356,2]
[314533106,1708405898974,-1448.561088,0.00038356,2]
[314533107,1708405898986,-3684.275949,0.00038356,2]
[314533108,1708405898995,-526.45273274,0.00038356,20]
[314533109,1708405899004,-250.0,0.00038356,2]
[314533110,1708405899014,-151.0,0.00038356,14]
[314533111,1708405899024,-151.0,0.00038356,14]
[314533112,1708405899032,-151.0,0.00038356,14]
[314533113,1708405899042,-151.0,0.00038356,14]
[314533114,1708405899052,-151.0,0.00038356,14]
[314533115,1708405899062,-151.0,0.00038356,14]
[314533116,1708405899071,-151.0,0.00038356,14]
[314533117,1708405899081,-151.0,0.00038356,14]
[314533118,1708405899090,-151.0,0.00038356,14]
[314533119,1708405899100,-151.0,0.00038356,14]
[314533120,1708405899109,-151.0,0.00038356,14]
[314533121,1708405899118,-151.0,0.00038356,14]
[314533122,1708405899128,-151.168053,0.00038356,14]
[314533123,1708405899137,-236.594565,0.00038356,14]
[314533124,1708405899146,-151.0,0.00038356,14]
[314533125,1708405899155,-151.0,0.00038356,14]
[314533126,1708405899165,-174.617841,0.00038356,14]
[314533127,1708405899174,-151.0,0.00038356,14]
[314533128,1708405899184,-151.0,0.00038356,14]
[314533129,1708405899195,-151.0,0.00038356,14]
[314533130,1708405899205,-151.748661,0.00038356,14]
[314533131,1708405899214,-151.0,0.00038356,14]
[314533132,1708405899223,-151.0,0.00038356,14]
[314533133,1708405899233,-151.0,0.00038356,14]
[314533134,1708405899243,-151.0,0.00038356,14]
[314533135,1708405899252,-151.0,0.00038356,14]
[314533136,1708405899262,-151.0,0.00038356,14]
[314533137,1708405899272,-151.0,0.00038356,14]
[314533138,1708405899281,-151.0,0.00038356,14]
[314533139,1708405899291,-151.0,0.00038356,14]
[314533140,1708405899300,-152.601209,0.00038356,14]
[314533141,1708405899310,-151.0,0.00038356,14]
[314533142,1708405899319,-151.0,0.00038356,14]
[314533143,1708405899329,-151.0,0.00038356,14]
[314533144,1708405899339,-151.0,0.00038356,14]
[314533145,1708405899348,-151.0,0.00038356,14]
[314533146,1708405899358,-151.0,0.00038356,14]
[314533147,1708405899367,-211.892276,0.00038356,14]
[314533148,1708405899377,-151.0,0.00038356,14]
[314533149,1708405899386,-151.0,0.00038356,14]
[314533150,1708405899396,-151.0,0.00038356,14]
[314533151,1708405899406,-151.0,0.00038356,14]
[314533152,1708405899415,-151.0,0.00038356,14]
[314533153,1708405899424,-151.0,0.00038356,14]
[314533154,1708405899433,-151.0,0.00038356,14]
[314533155,1708405899443,-151.0,0.00038356,14]
[314533156,1708405899452,-151.0,0.00038356,14]
[314533157,1708405899461,-151.0,0.00038356,14]
[314533158,1708405899470,-151.0,0.00038356,14]
[314533159,1708405899480,-151.0,0.00038356,14]
[314533160,1708405899489,-151.0,0.00038356,14]
[314533161,1708405899498,-151.776244,0.00038356,14]
[314533162,1708405899508,-151.0,0.00038356,14]
[314533163,1708405899517,-151.0,0.00038356,14]
[314533164,1708405899526,-151.0,0.00038356,14]
[314533165,1708405899535,-151.0,0.00038356,14]
[314533166,1708405899545,-151.0,0.00038356,14]
[314533167,1708405899554,-151.0,0.00038356,14]
[314533168,1708405899564,-151.0,0.00038356,14]
[314533169,1708405899573,-151.0,0.00038356,14]
[314533170,1708405899583,-151.0,0.00038356,14]
[314533171,1708405899592,-151.0,0.00038356,14]
[314533172,1708405899601,-151.0,0.00038356,14]
[314533173,1708405899611,-151.0,0.00038356,14]
[314533174,1708405899620,-214.252403,0.00038356,14]
[314533175,1708405899629,-151.0,0.00038356,14]
[314533176,1708405899639,-151.0,0.00038356,14]
[314533177,1708405899648,-151.0,0.00038356,14]
[314533178,1708405899658,-284.700464,0.00038356,14]
[314533179,1708405899667,-151.0,0.00038356,14]
[314533180,1708405899677,-151.0,0.00038356,14]
[314533181,1708405899686,-151.0,0.00038356,14]
[314533182,1708405899697,-151.0,0.00038356,14]
[314533183,1708405899706,-151.0,0.00038356,14]
[314533184,1708405899716,-151.0,0.00038356,14]
[314533185,1708405899725,-151.0,0.00038356,14]
[314533186,1708405899735,-151.0,0.00038356,14]
[314533187,1708405899745,-151.0,0.00038356,14]
[314533188,1708405899754,-151.0,0.00038356,14]
[314533189,1708405899764,-151.0,0.00038356,14]
[314533190,1708405899773,-151.0,0.00038356,14]
[314533191,1708405899783,-151.0,0.00038356,14]
[314533192,1708405899792,-151.0,0.00038356,14]
[314533193,1708405899802,-151.0,0.00038356,14]
[314533194,1708405899812,-151.0,0.00038356,14]
[314533195,1708405899821,-151.0,0.00038356,14]
[314533196,1708405899830,-151.0,0.00038356,14]
[314533197,1708405899840,-151.0,0.00038356,14]
[314533198,1708405899849,-235.880964,0.00038356,14]
[314533199,1708405899859,-216.801343,0.00038356,14]
[314533200,1708405899869,-216.801343,0.00038356,14]
[314533201,1708405899878,-216.801343,0.00038356,14]
[314533202,1708405899887,-216.801343,0.00038356,14]
[314533203,1708405899897,-216.801343,0.00038356,14]
[314533204,1708405899906,-151.0,0.00038356,7]
[314533205,1708405899916,-151.0,0.00038356,7]
[314533206,1708405899926,-151.0,0.00038356,7]
[314533207,1708405899936,-151.0,0.00038356,7]
[314533208,1708405899946,-216.801343,0.00038356,14]
[314533209,1708405899955,-151.0,0.00038356,7]
[314533210,1708405899965,-216.801343,0.00038356,14]
[314533211,1708405899976,-216.801343,0.00038356,14]
[314533212,1708405899989,-216.801343,0.00038356,14]
[314533213,1708405899998,-151.0,0.00038356,14]
[314533214,1708405900008,-216.801343,0.00038356,14]
[314533215,1708405900018,-151.0,0.00038356,14]
[314533216,1708405900028,-151.0,0.00038356,14]
[314533217,1708405900037,-151.0,0.00038356,14]
[314533218,1708405900047,-151.0,0.00038356,14]
[314533219,1708405900057,-221.832353,0.00038356,14]
[314533220,1708405900068,-151.0,0.00038356,14]
[314533221,1708405900078,-151.0,0.00038356,14]
[314533222,1708405900087,-151.0,0.00038356,14]
[314533223,1708405900097,-151.0,0.00038356,14]
[314533224,1708405900107,-151.0,0.00038356,14]
[314533225,1708405900116,-151.0,0.00038356,14]
[314533226,1708405900126,-151.0,0.00038356,14]
[314533227,1708405900135,-151.0,0.00038356,14]
[314533228,1708405900145,-151.0,0.00038356,14]
[314533229,1708405900154,-151.0,0.00038356,14]
[314533230,1708405900164,-151.0,0.00038356,14]
[314533231,1708405900174,-151.0,0.00038356,14]
[314533232,1708405900186,-151.0,0.00038356,14]
[314533233,1708405900197,-151.0,0.00038356,14]
[314533234,1708405900206,-151.0,0.00038356,14]
[314533235,1708405900216,-208.728304,0.00038356,14]
[314533236,1708405900225,-151.0,0.00038356,14]
[314533237,1708405900234,-151.0,0.00038356,14]
[314533238,1708405900244,-151.0,0.00038356,14]
[314533239,1708405900254,-151.0,0.00038356,14]
[314533240,1708405900263,-151.0,0.00038356,14]
[314533241,1708405900273,-151.0,0.00038356,14]
[314533242,1708405900282,-155.670145,0.00038356,14]
[314533243,1708405900292,-151.0,0.00038356,14]
[314533244,1708405900302,-152.363569,0.00038356,14]
[314533245,1708405900311,-302.677308,0.00038356,14]
[314533246,1708405900321,-302.677308,0.00038356,14]
[314533247,1708405900331,-302.677308,0.00038356,14]
[314533248,1708405900341,-302.677308,0.00038356,14]
[314533249,1708405900351,-302.677308,0.00038356,14]
[314533250,1708405900361,-302.677308,0.00038356,14]
[314533251,1708405900375,-302.677308,0.00038356,14]
[314533252,1708405900386,-302.677308,0.00038356,14]
[314533253,1708405900396,-302.677308,0.00038356,14]
[314533254,1708405900406,-302.677308,0.00038356,14]
[314533255,1708405900416,-198.526705,0.00038356,14]
[314533256,1708405900426,-198.526705,0.00038356,14]
[314533257,1708405900436,-198.526705,0.00038356,14]
[314533258,1708405900446,-198.526705,0.00038356,14]
[314533259,1708405900456,-198.526705,0.00038356,14]
[314533260,1708405900466,-198.526705,0.00038356,14]
[314533261,1708405900476,-198.526705,0.00038356,14]
[314533262,1708405900485,-198.526705,0.00038356,14]
[314533263,1708405900495,-198.526705,0.00038356,14]
[314533264,1708405900505,-198.526705,0.00038356,14]
[314533265,1708405900515,-151.0,0.00038356,14]
[314533266,1708405900525,-151.0,0.00038356,14]
[314533267,1708405900535,-151.0,0.00038356,14]
[314533268,1708405900544,-151.0,0.00038356,14]
[314533269,1708405900554,-151.0,0.00038356,14]
[314533270,1708405900563,-151.0,0.00038356,14]
[314533271,1708405900573,-196.53821,0.00038356,14]
[314533272,1708405900583,-151.0,0.00038356,14]
[314533273,1708405900592,-151.0,0.00038356,14]
[314533274,1708405900602,-151.0,0.00038356,14]
[314533275,1708405900611,-151.0,0.00038356,14]
[314533276,1708405900622,-151.0,0.00038356,14]
[314533277,1708405900631,-151.0,0.00038356,14]
[314533278,1708405900641,-151.0,0.00038356,14]
[314533279,1708405900651,-151.0,0.00038356,14]
[314533280,1708405900661,-151.0,0.00038356,14]
[314533281,1708405900671,-151.0,0.00038356,14]
[314533282,1708405900683,-151.0,0.00038356,14]
[314533283,1708405900692,-151.0,0.00038356,14]
[314533284,1708405900703,-151.0,0.00038356,14]
[314533285,1708405900713,-151.0,0.00038356,14]
[314533286,1708405900722,-151.0,0.00038356,14]
[314533287,1708405900732,-162.204173,0.00038356,14]
[314533288,1708405900742,-162.204173,0.00038356,14]
[314533289,1708405900751,-162.204173,0.00038356,14]
[314533290,1708405900761,-151.0,0.00038356,14]
[314533291,1708405900771,-162.204173,0.00038356,14]
[314533292,1708405900781,-151.0,0.00038356,14]
[314533293,1708405900791,-162.204173,0.00038356,14]
[314533294,1708405900800,-151.0,0.00038356,14]
[314533295,1708405900810,-151.0,0.00038356,14]
[314533296,1708405900819,-151.0,0.00038356,14]
[314533297,1708405900829,-162.204173,0.00038356,14]
[314533298,1708405900839,-252.42255,0.00038356,14]
[314533299,1708405900849,-162.204173,0.00038356,14]
[314533300,1708405900859,-162.204173,0.00038356,14]
[314533301,1708405900869,-162.204173,0.00038356,14]
[314533302,1708405900879,-162.204173,0.00038356,14]
[314533303,1708405900888,-150.0,0.00038356,2]
[314533304,1708405900898,-151.0,0.00038356,2]
[314533305,1708405900907,-151.0,0.00038356,2]
[314533306,1708405900916,-151.0,0.00038356,2]
[314533307,1708405900927,-151.0,0.00038356,2]
[314533308,1708405900937,-151.0,0.00038356,2]
[314533309,1708405900947,-151.0,0.00038356,2]
[314533310,1708405900956,-151.0,0.00038356,2]
[314533311,1708405900966,-151.0,0.00038356,2]
[314533312,1708405900976,-151.0,0.00038356,14]
[314533313,1708405900987,-151.0,0.00038356,2]
[314533314,1708405900997,-151.0,0.00038356,2]
[314533315,1708405901007,-219.961635,0.00038356,14]
[314533316,1708405901017,-151.0,0.00038356,14]
[314533317,1708405901027,-215.034008,0.00038356,14]
[314533318,1708405901036,-151.0,0.00038356,14]
[314533319,1708405901047,-151.0,0.00038356,14]
[314533320,1708405901057,-151.0,0.00038356,14]
[314533321,1708405901066,-151.0,0.00038356,14]
[314533322,1708405901077,-151.0,0.00038356,14]
[314533323,1708405901087,-151.0,0.00038356,14]
[314533324,1708405901096,-151.0,0.00038356,14]
[314533325,1708405901106,-151.363002,0.00038356,14]
[314533326,1708405901116,-284.921366,0.00038356,14]
[314533327,1708405901125,-284.921366,0.00038356,14]
[314533328,1708405901135,-284.921366,0.00038356,14]
[314533329,1708405901144,-284.921366,0.00038356,14]
[314533330,1708405901153,-284.921366,0.00038356,14]
[314533331,1708405901163,-284.921366,0.00038356,14]
[314533332,1708405901172,-151.0,0.00038356,7]
[314533333,1708405901182,-284.921366,0.00038356,14]
[314533334,1708405901192,-151.0,0.00038356,7]
[314533335,1708405901202,-284.921366,0.00038356,14]
[314533336,1708405901211,-284.921366,0.00038356,14]
[314533337,1708405901222,-284.921366,0.00038356,14]
[314533338,1708405901232,-151.0,0.00038356,7]
[314533339,1708405901478,-151.0,0.00038356,7]
[314533340,1708405901487,-210.036988,0.00038356,7]
[314533341,1708405901496,-151.0,0.00038356,7]
[314533342,1708405901506,-151.0,0.00038356,7]
[314533343,1708405901515,-151.0,0.00038356,7]
[314533344,1708405901525,-151.0,0.00038356,7]
[314533345,1708405901534,-157.104,0.00038356,7]
[314533346,1708405901543,-251.823036,0.00038356,14]
[314533347,1708405901553,-251.823036,0.00038356,14]
[314533348,1708405901563,-251.823036,0.00038356,14]
[314533349,1708405901572,-251.823036,0.00038356,14]
[314533350,1708405901582,-251.823036,0.00038356,14]
[314533351,1708405901591,-151.0,0.00038356,3]
[314533352,1708405901601,-151.0,0.00038356,3]